[Event "*** Titled Tuesday Blitz"]
[Site "Chess.com"]
[Date "2018.11.06"]
[Round "1"]
[White "pultineviciuspaulius"]
[Black "Atanejhad"]
[Result "1-0"]
[WhiteElo "2574"]
[BlackElo "2216"]
[TimeControl "180+2"]
[EndTime "13:09:59 PST"]
[Termination "pultineviciuspaulius won on time"]

1. d4 {[%clk 0:02:45.8]} 1... Nf6 {[%clk 0:03:00.1]} 2. c4 {[%clk 0:02:46.2]}
2... e6 {[%clk 0:03:00.4]} 3. Nf3 {[%clk 0:02:47.1]} 3... c5 {[%clk 0:03:00.6]}
4. d5 {[%clk 0:02:44.5]} 4... b5 {[%clk 0:02:59.8]} 5. Nc3 {[%clk 0:02:38.9]}
5... b4 {[%clk 0:02:58.6]} 6. Nb1 {[%clk 0:02:39.7]} 6... exd5 {[%clk
0:02:55.3]} 7. cxd5 {[%clk 0:02:40.4]} 7... Bb7 {[%clk 0:02:56.7]} 8. Bg5 {[%clk
0:02:28.2]} 8... h6 {[%clk 0:02:57.4]} 9. Bh4 {[%clk 0:02:26.4]} 9... g5 {[%clk
0:02:54.8]} 10. Bg3 {[%clk 0:02:27]} 10... Bxd5 {[%clk 0:02:54.1]} 11. Nbd2
{[%clk 0:02:27.6]} 11... Bg7 {[%clk 0:02:46.7]} 12. Rc1 {[%clk 0:02:10]} 12...
d6 {[%clk 0:02:46.5]} 13. e4 {[%clk 0:02:08.7]} 13... Bxe4 {[%clk 0:02:24.3]}
14. Nxe4 {[%clk 0:02:06.5]} 14... Nxe4 {[%clk 0:02:10.5]} 15. Bb5+ {[%clk
0:01:53.4]} 15... Kf8 {[%clk 0:02:04.5]} 16. Qd5 {[%clk 0:01:48.9]} 16... Nxg3
{[%clk 0:02:02.3]} 17. hxg3 {[%clk 0:01:48.2]} 17... Nd7 {[%clk 0:01:54.9]} 18.
Bxd7 {[%clk 0:01:45.3]} 18... Qe7+ {[%clk 0:01:50.1]} 19. Kf1 {[%clk 0:01:46.1]}
19... Rd8 {[%clk 0:01:49.6]} 20. Bb5 {[%clk 0:01:43.5]} 20... Bxb2 {[%clk
0:01:49.3]} 21. Re1 {[%clk 0:01:44.5]} 21... Qf6 {[%clk 0:01:46.9]} 22. Bc4
{[%clk 0:01:39.5]} 22... Kg7 {[%clk 0:01:45.3]} 23. Nd2 {[%clk 0:01:31.2]} 23...
Bc3 {[%clk 0:01:45]} 24. Ne4 {[%clk 0:01:31.2]} 24... Rhe8 {[%clk 0:01:18.4]}
25. Re3 {[%clk 0:01:10]} 25... Qe6 {[%clk 0:00:54.3]} 26. Qxe6 {[%clk
0:01:00.2]} 26... fxe6 {[%clk 0:00:53.3]} 27. Nxc3 {[%clk 0:01:00.9]} 27... bxc3
{[%clk 0:00:54.8]} 28. Rxc3 {[%clk 0:00:53.3]} 28... d5 {[%clk 0:00:55.7]} 29.
Bb5 {[%clk 0:00:50.3]} 29... Rb8 {[%clk 0:00:51.8]} 30. Bxe8 {[%clk 0:00:46.6]}
30... Rb1+ {[%clk 0:00:52.1]} 31. Ke2 {[%clk 0:00:48.5]} 31... Rxh1 {[%clk
0:00:51.5]} 32. Rxc5 {[%clk 0:00:50.4]} 32... Kf6 {[%clk 0:00:48.8]} 33. Ba4
{[%clk 0:00:50.7]} 33... Ke5 {[%clk 0:00:47.9]} 34. Bb3 {[%clk 0:00:51.6]} 34...
Rb1 {[%clk 0:00:42.1]} 35. Ra5 {[%clk 0:00:51.8]} 35... Rb2+ {[%clk 0:00:42.4]}
36. Ke3 {[%clk 0:00:52.8]} 36... h5 {[%clk 0:00:38.6]} 37. f4+ {[%clk
0:00:49.8]} 37... gxf4+ {[%clk 0:00:38.8]} 38. gxf4+ {[%clk 0:00:51.7]} 38...
Kf5 {[%clk 0:00:38.3]} 39. Kf3 {[%clk 0:00:51.9]} 39... Rd2 {[%clk 0:00:35.3]}
40. Rxa7 {[%clk 0:00:44.2]} 40... Rd3+ {[%clk 0:00:34.2]} 41. Kf2 {[%clk
0:00:45.7]} 41... Rd2+ {[%clk 0:00:34.7]} 42. Kf3 {[%clk 0:00:39.3]} 42... Rd3+
{[%clk 0:00:35.6]} 43. Ke2 {[%clk 0:00:40.8]} 43... Rg3 {[%clk 0:00:35.7]} 44.
Kf2 {[%clk 0:00:41.4]} 44... h4 {[%clk 0:00:35.4]} 45. Re7 {[%clk 0:00:39.6]}
45... Rc3 {[%clk 0:00:27.2]} 46. Rh7 {[%clk 0:00:36.7]} 46... Kxf4 {[%clk
0:00:26.2]} 47. Rxh4+ {[%clk 0:00:35.4]} 47... Ke5 {[%clk 0:00:26.5]} 48. Rh1
{[%clk 0:00:32.6]} 48... Kd6 {[%clk 0:00:25.1]} 49. Re1 {[%clk 0:00:34.5]} 49...
e5 {[%clk 0:00:26]} 50. g4 {[%clk 0:00:35.3]} 50... d4 {[%clk 0:00:18.2]} 51. g5
{[%clk 0:00:35.8]} 51... Rc7 {[%clk 0:00:19.5]} 52. g6 {[%clk 0:00:36.3]} 52...
Rg7 {[%clk 0:00:20.6]} 53. Bf7 {[%clk 0:00:37.7]} 53... Kc5 {[%clk 0:00:21.8]}
54. Kf3 {[%clk 0:00:38.6]} 54... Kb4 {[%clk 0:00:22.3]} 55. Ke4 {[%clk
0:00:39.4]} 55... Kc3 {[%clk 0:00:23.4]} 56. a4 {[%clk 0:00:40.8]} 56... d3
{[%clk 0:00:23.5]} 57. a5 {[%clk 0:00:42.2]} 57... d2 {[%clk 0:00:24.5]} 58. Rh1
{[%clk 0:00:43.4]} 58... Kc2 {[%clk 0:00:03]} 59. a6 {[%clk 0:00:40.7]} 59...
Rxf7 {[%clk 0:00:03.2]} 60. gxf7 {[%clk 0:00:41]} 1-0

[Event "*** Titled Tuesday Blitz"]
[Site "Chess.com"]
[Date "2018.11.06"]
[Round "1"]
[White "Angry_Twin"]
[Black "Mikhail_Golubev"]
[Result "1/2-1/2"]
[WhiteElo "2776"]
[BlackElo "2419"]
[TimeControl "180+2"]
[EndTime "13:10:00 PST"]
[Termination "Game drawn by repetition"]

1. e4 {[%clk 0:02:58]} 1... c5 {[%clk 0:03:00.2]} 2. Nf3 {[%clk 0:02:59]} 2...
d6 {[%clk 0:03:00.2]} 3. d4 {[%clk 0:03:00]} 3... cxd4 {[%clk 0:03:01.3]} 4.
Nxd4 {[%clk 0:03:01.9]} 4... Nf6 {[%clk 0:03:01.9]} 5. Nc3 {[%clk 0:03:03.4]}
5... g6 {[%clk 0:03:02.6]} 6. Be3 {[%clk 0:03:02.3]} 6... Bg7 {[%clk 0:03:03.1]}
7. f3 {[%clk 0:03:02]} 7... a6 {[%clk 0:03:03.6]} 8. Qd2 {[%clk 0:03:02.6]} 8...
h5 {[%clk 0:03:03.4]} 9. O-O-O {[%clk 0:03:02.6]} 9... Nbd7 {[%clk 0:03:03.2]}
10. Kb1 {[%clk 0:03:03.3]} 10... b5 {[%clk 0:03:00.1]} 11. Bd3 {[%clk
0:02:17.5]} 11... Bb7 {[%clk 0:02:58.5]} 12. h3 {[%clk 0:02:18.2]} 12... h4
{[%clk 0:02:53.7]} 13. Rhe1 {[%clk 0:02:18.6]} 13... Rc8 {[%clk 0:02:50]} 14.
Qf2 {[%clk 0:02:11.3]} 14... b4 {[%clk 0:02:44.5]} 15. Nd5 {[%clk 0:02:08.3]}
15... Nxd5 {[%clk 0:02:36.9]} 16. exd5 {[%clk 0:02:10.2]} 16... Bxd5 {[%clk
0:02:37.6]} 17. Bg5 {[%clk 0:02:00.6]} 17... Bxa2+ {[%clk 0:02:26.9]} 18. Kxa2
{[%clk 0:01:12.8]} 18... Qa5+ {[%clk 0:02:26.7]} 19. Kb1 {[%clk 0:01:14.7]}
19... Qxg5 {[%clk 0:02:26.3]} 20. Bxa6 {[%clk 0:01:11.6]} 20... Rc5 {[%clk
0:02:01.7]} 21. f4 {[%clk 0:00:55.4]} 21... Qf6 {[%clk 0:02:02.2]} 22. Qd2
{[%clk 0:00:55.6]} 22... O-O {[%clk 0:02:00.5]} 23. Qxb4 {[%clk 0:00:55.6]}
23... Rb8 {[%clk 0:01:59.9]} 24. Qa4 {[%clk 0:00:54.5]} 24... Qxf4 {[%clk
0:01:48.2]} 25. Rf1 {[%clk 0:00:51.4]} 25... Qe3 {[%clk 0:01:17.9]} 26. Rfe1
{[%clk 0:00:50.8]} 26... Qc3 {[%clk 0:01:16.4]} 27. Bb7 {[%clk 0:00:32.2]} 27...
Bxd4 {[%clk 0:00:21.7]} 28. bxc3 {[%clk 0:00:33.1]} 28... Rxb7+ {[%clk 0:00:22]}
29. Kc1 {[%clk 0:00:15.6]} 29... Bf6 {[%clk 0:00:23]} 30. Rd2 {[%clk 0:00:12.6]}
30... Bg5 {[%clk 0:00:21.7]} 31. Qa8+ {[%clk 0:00:13.7]} 31... Rb8 {[%clk
0:00:22.3]} 32. Qa7 {[%clk 0:00:15.5]} 32... Rcb5 {[%clk 0:00:19]} 33. Kd1
{[%clk 0:00:15.1]} 33... Rb1+ {[%clk 0:00:18.8]} 34. Ke2 {[%clk 0:00:16.6]}
34... Rxe1+ {[%clk 0:00:19.2]} 35. Kxe1 {[%clk 0:00:18.5]} 35... Rb1+ {[%clk
0:00:17.8]} 36. Ke2 {[%clk 0:00:20.2]} 36... Bxd2 {[%clk 0:00:17.3]} 37. Qxd7
{[%clk 0:00:20.7]} 37... Bg5 {[%clk 0:00:17.3]} 38. Kd3 {[%clk 0:00:21.8]} 38...
Bf6 {[%clk 0:00:17.7]} 39. c4 {[%clk 0:00:22.7]} 39... Rd1+ {[%clk 0:00:17.8]}
40. Ke2 {[%clk 0:00:24]} 40... Rd4 {[%clk 0:00:18.8]} 41. Qc8+ {[%clk
0:00:24.7]} 41... Kg7 {[%clk 0:00:19.7]} 42. Qc6 {[%clk 0:00:26.2]} 42... Rf4
{[%clk 0:00:20.1]} 43. Qd5 {[%clk 0:00:23.6]} 43... Bd4 {[%clk 0:00:19.9]} 44.
Qb7 {[%clk 0:00:22.6]} 44... e6 {[%clk 0:00:18.5]} 45. Kd3 {[%clk 0:00:22.7]}
45... Bc5 {[%clk 0:00:18.7]} 46. Kc3 {[%clk 0:00:20.5]} 46... e5 {[%clk
0:00:17.4]} 47. Kb3 {[%clk 0:00:21.4]} 47... Rf2 {[%clk 0:00:17]} 48. Qe4 {[%clk
0:00:20.1]} 48... f5 {[%clk 0:00:17]} 49. Qxh4 {[%clk 0:00:21.1]} 49... Rxg2
{[%clk 0:00:17.9]} 50. Qe7+ {[%clk 0:00:22.2]} 50... Kh6 {[%clk 0:00:19]} 51.
Qh4+ {[%clk 0:00:23.5]} 51... Kg7 {[%clk 0:00:20.2]} 52. Ka4 {[%clk 0:00:24.5]}
52... Rxc2 {[%clk 0:00:18.8]} 53. Kb5 {[%clk 0:00:25.9]} 53... f4 {[%clk
0:00:18.1]} 54. Kc6 {[%clk 0:00:26.4]} 54... f3 {[%clk 0:00:19.2]} 55. Qe7+
{[%clk 0:00:24.3]} 55... Kg8 {[%clk 0:00:17.8]} 56. Qe8+ {[%clk 0:00:25.1]}
56... Kg7 {[%clk 0:00:18.4]} 57. Qe7+ {[%clk 0:00:26.3]} 57... Kg8 {[%clk
0:00:19]} 58. Qe6+ {[%clk 0:00:22.2]} 58... Kg7 {[%clk 0:00:19.5]} 59. Qe7+
{[%clk 0:00:23.5]} 1/2-1/2

[Event "*** Titled Tuesday Blitz"]
[Site "Chess.com"]
[Date "2018.11.06"]
[Round "1"]
[White "Kangoroo3000"]
[Black "tteshan"]
[Result "1-0"]
[WhiteElo "2520"]
[BlackElo "2136"]
[TimeControl "180+2"]
[EndTime "13:10:05 PST"]
[Termination "Kangoroo3000 won by resignation"]

1. d4 {[%clk 0:02:57]} 1... d5 {[%clk 0:03:00.5]} 2. c4 {[%clk 0:02:57.1]} 2...
dxc4 {[%clk 0:03:00.6]} 3. Nf3 {[%clk 0:02:57.4]} 3... Nf6 {[%clk 0:03:01.6]} 4.
e3 {[%clk 0:02:58.7]} 4... Bg4 {[%clk 0:03:02.7]} 5. Bxc4 {[%clk 0:02:59]} 5...
e6 {[%clk 0:03:03.8]} 6. O-O {[%clk 0:02:59.6]} 6... a6 {[%clk 0:03:02.3]} 7.
Be2 {[%clk 0:02:57.5]} 7... Nc6 {[%clk 0:03:03.3]} 8. Nc3 {[%clk 0:02:58.2]}
8... Bd6 {[%clk 0:03:03.3]} 9. b3 {[%clk 0:02:59]} 9... O-O {[%clk 0:03:03.7]}
10. Bb2 {[%clk 0:02:59.5]} 10... Re8 {[%clk 0:03:04.3]} 11. Rc1 {[%clk
0:02:59.8]} 11... Qe7 {[%clk 0:03:05.1]} 12. Na4 {[%clk 0:02:59.7]} 12... Nd5
{[%clk 0:02:58.1]} 13. h3 {[%clk 0:02:53.7]} 13... Bh5 {[%clk 0:02:57.5]} 14.
Nc5 {[%clk 0:02:54.3]} 14... Bxc5 {[%clk 0:02:57.1]} 15. Rxc5 {[%clk 0:02:56.2]}
15... f5 {[%clk 0:02:48.7]} 16. Nd2 {[%clk 0:02:37.6]} 16... Bxe2 {[%clk
0:02:48.3]} 17. Qxe2 {[%clk 0:02:39.5]} 17... g5 {[%clk 0:02:43.9]} 18. Rfc1
{[%clk 0:02:37]} 18... Kh8 {[%clk 0:02:41.6]} 19. e4 {[%clk 0:02:29.9]} 19...
Nf4 {[%clk 0:02:24.4]} 20. Qf3 {[%clk 0:02:26.3]} 20... Kg8 {[%clk 0:02:15.9]}
21. Kh2 {[%clk 0:02:07.1]} 21... Qd6 {[%clk 0:02:11.5]} 22. g3 {[%clk
0:02:05.2]} 22... Nxd4 {[%clk 0:01:54.2]} 23. Bxd4 {[%clk 0:02:02.1]} 23... Qxd4
{[%clk 0:01:56.1]} 24. gxf4 {[%clk 0:02:03.5]} 24... Qxd2 {[%clk 0:01:55.6]} 25.
exf5 {[%clk 0:01:34.6]} 25... exf5 {[%clk 0:01:21.2]} 26. Rg1 {[%clk 0:01:07.3]}
26... Re2 {[%clk 0:01:01]} 27. Rxg5+ {[%clk 0:01:05.3]} 27... Kh8 {[%clk
0:01:01.8]} 28. Kg2 {[%clk 0:00:54.1]} 28... Rae8 {[%clk 0:00:41]} 29. Rxc7
{[%clk 0:00:46.4]} 29... h6 {[%clk 0:00:36.9]} 30. Rgg7 {[%clk 0:00:23.6]} 30...
Rxf2+ {[%clk 0:00:32.3]} 31. Qxf2 {[%clk 0:00:24.8]} 31... Re2 {[%clk
0:00:33.7]} 32. Rh7+ {[%clk 0:00:21.5]} 32... Kg8 {[%clk 0:00:35.1]} 33. Rcg7+
{[%clk 0:00:21.2]} 33... Kf8 {[%clk 0:00:36.1]} 34. Rf7+ {[%clk 0:00:23.1]}
34... Kg8 {[%clk 0:00:33.6]} 35. Rfg7+ {[%clk 0:00:15.8]} 35... Kf8 {[%clk
0:00:34.7]} 36. Rf7+ {[%clk 0:00:13.3]} 36... Kg8 {[%clk 0:00:35.8]} 37. Rfg7+
{[%clk 0:00:09.9]} 37... Kf8 {[%clk 0:00:36.8]} 38. Rf7+ {[%clk 0:00:07.3]}
38... Kg8 {[%clk 0:00:37.1]} 39. Rhg7+ {[%clk 0:00:08.7]} 39... Kh8 {[%clk
0:00:37.4]} 40. Qxe2 {[%clk 0:00:03.5]} 40... Qxe2+ {[%clk 0:00:37.6]} 41. Kg3
{[%clk 0:00:05.4]} 41... Qe3+ {[%clk 0:00:38.7]} 42. Kh4 {[%clk 0:00:04.4]}
42... Qxf4+ {[%clk 0:00:39.7]} 43. Kh5 {[%clk 0:00:05.7]} 43... Qf3+ {[%clk
0:00:38.7]} 44. Kxh6 {[%clk 0:00:04.4]} 44... Qxh3+ {[%clk 0:00:39.9]} 45. Kg6
{[%clk 0:00:05.9]} 45... Qg4+ {[%clk 0:00:40.7]} 46. Kf6 {[%clk 0:00:06.9]}
46... Qd4+ {[%clk 0:00:39.2]} 47. Kg6 {[%clk 0:00:06.4]} 47... Qg4+ {[%clk
0:00:38.2]} 48. Kf6 {[%clk 0:00:07.4]} 48... Qd4+ {[%clk 0:00:39.2]} 49. Kxf5
{[%clk 0:00:08.4]} 49... Qf2+ {[%clk 0:00:38.7]} 50. Ke6 {[%clk 0:00:08.9]}
50... Qe3+ {[%clk 0:00:39.7]} 51. Kd6 {[%clk 0:00:09.6]} 51... Qd4+ {[%clk
0:00:40.6]} 52. Kc7 {[%clk 0:00:10.6]} 52... b5 {[%clk 0:00:32.6]} 53. Rd7
{[%clk 0:00:07.1]} 53... Qc5+ {[%clk 0:00:30.6]} 54. Kb7 {[%clk 0:00:07.2]}
54... a5 {[%clk 0:00:28.1]} 55. Rge7 {[%clk 0:00:07]} 1-0

[Event "*** Titled Tuesday Blitz"]
[Site "Chess.com"]
[Date "2018.11.06"]
[Round "1"]
[White "Karina_Oparina"]
[Black "RaphaeI"]
[Result "0-1"]
[WhiteElo "2198"]
[BlackElo "2536"]
[TimeControl "180+2"]
[EndTime "13:10:07 PST"]
[Termination "RaphaeI won by resignation"]

1. Nf3 {[%clk 0:03:00.7]} 1... c5 {[%clk 0:02:59.5]} 2. c4 {[%clk 0:02:59.6]}
2... g6 {[%clk 0:03:00.3]} 3. d4 {[%clk 0:03:00.3]} 3... cxd4 {[%clk 0:03:01.1]}
4. Nxd4 {[%clk 0:03:00.8]} 4... Nc6 {[%clk 0:03:02.8]} 5. g3 {[%clk 0:03:00.8]}
5... Bg7 {[%clk 0:03:03.5]} 6. Nxc6 {[%clk 0:03:00.4]} 6... bxc6 {[%clk
0:03:03.4]} 7. Bg2 {[%clk 0:03:00.9]} 7... Rb8 {[%clk 0:02:55.9]} 8. Nc3 {[%clk
0:02:57.2]} 8... h5 {[%clk 0:02:51.6]} 9. h4 {[%clk 0:02:51.8]} 9... Nf6 {[%clk
0:02:32.4]} 10. O-O {[%clk 0:02:31.6]} 10... O-O {[%clk 0:02:32.4]} 11. b3
{[%clk 0:02:21]} 11... Qc7 {[%clk 0:01:51.5]} 12. Bb2 {[%clk 0:02:18.8]} 12...
Ng4 {[%clk 0:01:52.4]} 13. e3 {[%clk 0:01:47.2]} 13... d6 {[%clk 0:01:51.5]} 14.
Qe2 {[%clk 0:01:44.5]} 14... Ne5 {[%clk 0:01:45.4]} 15. Rac1 {[%clk 0:01:41.6]}
15... Bg4 {[%clk 0:01:46.4]} 16. f3 {[%clk 0:01:41.3]} 16... Be6 {[%clk
0:01:34.6]} 17. Nd5 {[%clk 0:01:24.9]} 17... Bxd5 {[%clk 0:01:04.5]} 18. cxd5
{[%clk 0:01:25.2]} 18... c5 {[%clk 0:01:05.9]} 19. Bh3 {[%clk 0:00:56.3]} 19...
f5 {[%clk 0:00:36.2]} 20. f4 {[%clk 0:00:42.8]} 20... Ng4 {[%clk 0:00:37.1]} 21.
Bxg4 {[%clk 0:00:42]} 21... fxg4 {[%clk 0:00:30.2]} 22. Bxg7 {[%clk 0:00:40.7]}
22... Kxg7 {[%clk 0:00:32.1]} 23. Rc4 {[%clk 0:00:31.3]} 23... a5 {[%clk
0:00:28.9]} 24. e4 {[%clk 0:00:27.3]} 24... Rb4 {[%clk 0:00:23.8]} 25. Rxb4
{[%clk 0:00:20.9]} 25... axb4 {[%clk 0:00:24.8]} 26. Qb2+ {[%clk 0:00:19.6]}
26... Kg8 {[%clk 0:00:24.3]} 27. Qc2 {[%clk 0:00:18.9]} 27... Kh7 {[%clk
0:00:21.6]} 28. Qe2 {[%clk 0:00:17.1]} 28... Qa7 {[%clk 0:00:21.8]} 29. Kg2
{[%clk 0:00:16.4]} 29... Ra8 {[%clk 0:00:22.6]} 30. Rf2 {[%clk 0:00:17.4]} 30...
Qb7 {[%clk 0:00:22.4]} 31. Qd3 {[%clk 0:00:17.5]} 31... Rd8 {[%clk 0:00:20.6]}
32. Rd2 {[%clk 0:00:17.3]} 32... Rf8 {[%clk 0:00:20.2]} 33. Re2 {[%clk
0:00:16.7]} 33... Rb8 {[%clk 0:00:19.7]} 34. Rd2 {[%clk 0:00:17.4]} 34... Qb5
{[%clk 0:00:20.8]} 35. Kf2 {[%clk 0:00:17.6]} 35... Qxd3 {[%clk 0:00:21.5]} 36.
Rxd3 {[%clk 0:00:18.6]} 36... Ra8 {[%clk 0:00:23.4]} 37. Rd2 {[%clk 0:00:19.7]}
37... Ra3 {[%clk 0:00:25.3]} 38. e5 {[%clk 0:00:18.1]} 38... Kg7 {[%clk
0:00:27.2]} 39. Ke2 {[%clk 0:00:17.3]} 39... dxe5 {[%clk 0:00:28.7]} 40. fxe5
{[%clk 0:00:18.2]} 40... Kf7 {[%clk 0:00:29.7]} 41. d6 {[%clk 0:00:18.1]} 41...
exd6 {[%clk 0:00:30.6]} 42. exd6 {[%clk 0:00:19.1]} 42... Ke8 {[%clk 0:00:32.5]}
43. Kd3 {[%clk 0:00:20]} 43... Kd7 {[%clk 0:00:31.5]} 44. Kc4 {[%clk 0:00:21.1]}
44... Ra5 {[%clk 0:00:33.1]} 45. Kd5 {[%clk 0:00:19]} 45... Rb5 {[%clk
0:00:33.7]} 46. Re2 {[%clk 0:00:18.9]} 46... Ra5 {[%clk 0:00:34.2]} 47. Re7+
{[%clk 0:00:19.3]} 47... Kd8 {[%clk 0:00:35.6]} 48. Kc6 {[%clk 0:00:18.4]} 48...
Ra6+ {[%clk 0:00:37.1]} 49. Kxc5 {[%clk 0:00:18.5]} 49... Rxa2 {[%clk
0:00:38.7]} 50. Kc6 {[%clk 0:00:18]} 50... Rc2+ {[%clk 0:00:39.6]} 51. Kb5
{[%clk 0:00:17.7]} 51... Rc3 {[%clk 0:00:41.1]} 52. Re6 {[%clk 0:00:17.3]} 52...
Rxb3 {[%clk 0:00:39.2]} 53. Kc6 {[%clk 0:00:16.5]} 53... Rc3+ {[%clk 0:00:40.2]}
54. Kb5 {[%clk 0:00:16.9]} 54... Rxg3 {[%clk 0:00:41]} 55. Rxg6 {[%clk
0:00:17.7]} 55... b3 {[%clk 0:00:41.4]} 56. Kc6 {[%clk 0:00:12.1]} 56... Rc3+
{[%clk 0:00:41.7]} 57. Kd5 {[%clk 0:00:11.6]} 57... b2 {[%clk 0:00:43.1]} 58.
Rg8+ {[%clk 0:00:11.7]} 58... Kd7 {[%clk 0:00:44.5]} 59. Rg7+ {[%clk 0:00:12.8]}
59... Kc8 {[%clk 0:00:44.3]} 60. Rg8+ {[%clk 0:00:12.7]} 60... Kb7 {[%clk
0:00:45.4]} 61. Rg7+ {[%clk 0:00:13.6]} 61... Ka6 {[%clk 0:00:44.6]} 62. d7
{[%clk 0:00:11.1]} 62... b1=Q {[%clk 0:00:41.8]} 63. d8=Q {[%clk 0:00:07.4]}
63... Rd3+ {[%clk 0:00:39.5]} 0-1

[Event "*** Titled Tuesday Blitz"]
[Site "Chess.com"]
[Date "2018.11.06"]
[Round "1"]
[White "Bad4life"]
[Black "Malev212"]
[Result "0-1"]
[WhiteElo "2275"]
[BlackElo "2617"]
[TimeControl "180+2"]
[EndTime "13:10:14 PST"]
[Termination "Malev212 won by resignation"]

1. e4 {[%clk 0:02:57.5]} 1... g6 {[%clk 0:02:13.9]} 2. d4 {[%clk 0:02:47.7]}
2... Bg7 {[%clk 0:02:15.8]} 3. c3 {[%clk 0:02:48.2]} 3... d6 {[%clk 0:02:17.1]}
4. Bd3 {[%clk 0:02:47.8]} 4... Nf6 {[%clk 0:02:18]} 5. Nf3 {[%clk 0:02:48.5]}
5... O-O {[%clk 0:02:19.2]} 6. O-O {[%clk 0:02:50.1]} 6... Bg4 {[%clk
0:02:19.8]} 7. Re1 {[%clk 0:02:50.1]} 7... Nc6 {[%clk 0:02:19.7]} 8. Nbd2 {[%clk
0:02:49.5]} 8... e5 {[%clk 0:02:20.6]} 9. h3 {[%clk 0:02:50.4]} 9... Bd7 {[%clk
0:02:18.3]} 10. a4 {[%clk 0:02:48]} 10... a6 {[%clk 0:02:15.9]} 11. Nf1 {[%clk
0:02:45.4]} 11... Nh5 {[%clk 0:02:16.8]} 12. Bg5 {[%clk 0:02:44.7]} 12... f6
{[%clk 0:02:16.5]} 13. Be3 {[%clk 0:02:44.1]} 13... Nf4 {[%clk 0:02:03.8]} 14.
Bxf4 {[%clk 0:02:38.6]} 14... exf4 {[%clk 0:02:02.5]} 15. N1h2 {[%clk 0:02:39]}
15... g5 {[%clk 0:01:54.7]} 16. a5 {[%clk 0:02:27.2]} 16... Qe7 {[%clk
0:01:54.7]} 17. Ra3 {[%clk 0:02:23.1]} 17... Kh8 {[%clk 0:01:54.9]} 18. Bb1
{[%clk 0:02:18]} 18... Qf7 {[%clk 0:01:48.7]} 19. Ba2 {[%clk 0:02:00.5]} 19...
Qg6 {[%clk 0:01:44.5]} 20. Bb1 {[%clk 0:01:57.7]} 20... Qf7 {[%clk 0:01:32.5]}
21. Ba2 {[%clk 0:01:58.5]} 21... Qh5 {[%clk 0:01:33.5]} 22. Nd2 {[%clk 0:01:57]}
22... Qxd1 {[%clk 0:01:32.8]} 23. Rxd1 {[%clk 0:01:58.2]} 23... Rae8 {[%clk
0:01:34.3]} 24. f3 {[%clk 0:01:45.7]} 24... f5 {[%clk 0:01:35]} 25. Bd5 {[%clk
0:01:40.8]} 25... h6 {[%clk 0:01:34.5]} 26. Nhf1 {[%clk 0:01:37.1]} 26... Nd8
{[%clk 0:01:32.1]} 27. Kf2 {[%clk 0:01:31.2]} 27... c6 {[%clk 0:01:33]} 28. Bc4
{[%clk 0:01:31.2]} 28... fxe4 {[%clk 0:01:33.3]} 29. fxe4 {[%clk 0:01:30.6]}
29... Re7 {[%clk 0:01:32.6]} 30. Re1 {[%clk 0:01:25.7]} 30... Rfe8 {[%clk
0:01:28.5]} 31. Be2 {[%clk 0:01:22]} 31... Be6 {[%clk 0:01:25.3]} 32. Bh5 {[%clk
0:01:23]} 32... Bf7 {[%clk 0:01:26.8]} 33. Bxf7 {[%clk 0:01:18.6]} 33... Nxf7
{[%clk 0:01:28.7]} 34. Nh2 {[%clk 0:01:19.2]} 34... Kh7 {[%clk 0:01:28.9]} 35.
Rb3 {[%clk 0:01:16.2]} 35... Kg6 {[%clk 0:01:29.2]} 36. Nhf3 {[%clk 0:01:11]}
36... h5 {[%clk 0:01:28.2]} 37. Nh2 {[%clk 0:01:10.8]} 37... Bf6 {[%clk
0:01:25.6]} 38. Rb4 {[%clk 0:01:11.1]} 38... Nh6 {[%clk 0:01:26]} 39. Rg1 {[%clk
0:01:09.1]} 39... g4 {[%clk 0:01:26.8]} 40. g3 {[%clk 0:01:08]} 40... f3 {[%clk
0:01:27]} 41. h4 {[%clk 0:01:03.5]} 41... Nf7 {[%clk 0:01:23.8]} 42. Re1 {[%clk
0:01:03]} 42... Bg7 {[%clk 0:01:24.9]} 43. Nhf1 {[%clk 0:01:02.1]} 43... Bh6
{[%clk 0:01:25.8]} 44. Ne3 {[%clk 0:01:03.6]} 44... Nd8 {[%clk 0:01:09.5]} 45.
Rd1 {[%clk 0:00:40.1]} 45... Rd7 {[%clk 0:00:33.5]} 46. Re1 {[%clk 0:00:25.6]}
46... Ne6 {[%clk 0:00:32.8]} 47. Rb6 {[%clk 0:00:20.1]} 47... Ng7 {[%clk
0:00:23.7]} 48. Rb4 {[%clk 0:00:16.6]} 48... Re6 {[%clk 0:00:24.4]} 49. d5
{[%clk 0:00:13.7]} 49... Re5 {[%clk 0:00:21.5]} 50. Rd4 {[%clk 0:00:14]} 50...
c5 {[%clk 0:00:22.2]} 51. Rd3 {[%clk 0:00:14.6]} 51... Ne8 {[%clk 0:00:19.3]}
52. Nec4 {[%clk 0:00:15]} 52... Ree7 {[%clk 0:00:20.9]} 53. b4 {[%clk
0:00:14.9]} 53... cxb4 {[%clk 0:00:21.1]} 54. cxb4 {[%clk 0:00:16.8]} 54... Nf6
{[%clk 0:00:22.5]} 55. Nb6 {[%clk 0:00:18.3]} 55... Rd8 {[%clk 0:00:23.4]} 56.
Rd4 {[%clk 0:00:18.1]} 56... Rde8 {[%clk 0:00:24.7]} 57. Rc1 {[%clk 0:00:17.5]}
57... Bxd2 {[%clk 0:00:23.6]} 58. Rxd2 {[%clk 0:00:17.9]} 58... Nxe4+ {[%clk
0:00:25]} 59. Ke3 {[%clk 0:00:19.1]} 59... Nxd2+ {[%clk 0:00:26.4]} 60. Kxd2
{[%clk 0:00:21]} 60... Re2+ {[%clk 0:00:27.4]} 61. Kd3 {[%clk 0:00:21.7]} 61...
f2 {[%clk 0:00:28.8]} 62. Rf1 {[%clk 0:00:20.6]} 62... R8e3+ {[%clk 0:00:30.3]}
63. Kd4 {[%clk 0:00:21.6]} 63... Rxg3 {[%clk 0:00:31.7]} 64. Nc4 {[%clk
0:00:21.9]} 64... Rg1 {[%clk 0:00:32.6]} 0-1